fUST/lending_fUST_20250912
["ID","MTS","AMOUNT","RATE_DAILY","PERIOD"]
[385202686,1757683863536,-500.0,0.00016438,2]
[385202687,1757683863546,-500.0,0.00016438,2]
[385202688,1757683863557,-480.0,0.00016438,2]
[385202689,1757683863567,-598.87,0.00016438,2]
[385202690,1757683863577,-233.92635043,0.00016438,2]
[385202691,1757683863588,-1708.18,0.00016438,2]
[385202692,1757683863597,-2329.03,0.00016438,2]
[385202693,1757683863607,-559.79,0.00016438,2]
[385202694,1757683863617,-480.0,0.00016438,2]
[385202695,1757683863627,-480.0,0.00016438,2]
[385202696,1757683863637,-480.0,0.00016438,2]
[385202697,1757683863651,-518.78,0.00016438,2]
[385202698,1757683863661,-654.97,0.00016438,2]
[385202699,1757683863671,-352.82865398,0.00016438,2]
[385202700,1757683863681,-1038.08,0.00016438,2]
[385202701,1757683863691,-480.0,0.00016438,2]
[385202702,1757683863700,-590.8,0.00016438,2]
[385202703,1757683863710,-714.47,0.00016438,2]
[385202704,1757683863720,-732.03,0.00016438,2]
[385202705,1757683863730,-3733.72,0.00016438,2]
[385202706,1757683863740,-569.49,0.00016438,2]
[385202707,1757683863749,-580.0,0.00016438,2]
[385202708,1757683863759,-480.0,0.00016438,2]
[385202709,1757683863769,-480.0,0.00016438,2]
[385202710,1757683863779,-480.0,0.00016438,2]
[385202711,1757683863792,-560.73,0.00016438,2]
[385202712,1757683863802,-480.0,0.00016438,2]
[385202713,1757683863811,-480.0,0.00016438,2]
[385202714,1757683863821,-480.0,0.00016438,2]
[385202715,1757683863831,-649.79,0.00016438,2]
[385202716,1757683863841,-532.82,0.00016438,2]
[385202717,1757683863851,-480.0,0.00016438,2]
[385202718,1757683863861,-151.0,0.00016438,2]
[385202719,1757683863870,-480.0,0.00016438,2]
[385202720,1757683863880,-480.0,0.00016438,2]
[385202721,1757683863890,-574.58,0.00016438,2]
[385202722,1757683863901,-480.0,0.00016438,2]
[385202723,1757683863911,-250.908222,0.00016438,2]
[385202724,1757683863921,-250.908222,0.00016438,2]
[385202725,1757683863931,-480.0,0.00016438,2]
[385202726,1757683863941,-250.908222,0.00016438,2]
[385202727,1757683863951,-250.908222,0.00016438,2]
[385202728,1757683863961,-480.0,0.00016438,2]
[385202729,1757683863970,-480.0,0.00016438,2]
[385202730,1757683863980,-480.0,0.00016438,2]
[385202731,1757683863990,-480.0,0.00016438,2]
[385202732,1757683864000,-151.0,0.00016438,2]
[385202733,1757683864010,-2758.53,0.00016438,2]
[385202734,1757683864020,-480.0,0.00016438,2]
[385202735,1757683864030,-480.0,0.00016438,2]
[385202736,1757683864040,-158.157347,0.00016438,2]
[385202737,1757683864050,-480.0,0.00016438,2]
[385202738,1757683864059,-158.157347,0.00016438,2]
[385202739,1757683864080,-158.157347,0.00016438,2]
[385202740,1757683864090,-158.157347,0.00016438,2]
[385202741,1757683864101,-686.15,0.00016438,2]
[385202742,1757683864112,-978.27,0.00016438,2]
[385202743,1757683864122,-151.0,0.00016438,2]
[385202744,1757683864132,-151.0,0.00016438,2]
[385202745,1757683864144,-151.0,0.00016438,2]
[385202746,1757683864157,-151.0,0.00016438,2]
[385202747,1757683864169,-254.94945394,0.00016438,2]
[385202748,1757683864179,-501.24484171,0.000165,2]
[385202749,1757683864190,-480.0,0.00016712,2]
[385202750,1757683864202,-480.0,0.00016712,2]
[385202751,1757683864212,-480.0,0.00016712,2]
[385202752,1757683864222,-562.17668242,0.00016712,2]
[385202753,1757683864234,-488.93,0.00016712,2]
[385202754,1757683864244,-480.0,0.00016712,2]
[385202755,1757683864254,-500.0,0.00016712,2]
[385202756,1757683864264,-480.0,0.00016712,2]
[385202757,1757683864274,-598.87,0.00016712,2]
[385202758,1757683864284,-1708.18,0.00016712,2]
[385202759,1757683864295,-2329.03,0.00016712,2]
[385202760,1757683864305,-559.79,0.00016712,2]
[385202761,1757683864315,-480.0,0.00016712,2]
[385202762,1757683864326,-480.0,0.00016712,2]
[385202763,1757683864336,-480.0,0.00016712,2]
[385202764,1757683864346,-518.78,0.00016712,2]
[385202765,1757683864356,-654.97,0.00016712,2]
[385202766,1757683864367,-1038.08,0.00016712,2]
[385202767,1757683864377,-480.0,0.00016712,2]
[385202768,1757683864387,-590.8,0.00016712,2]
[385202769,1757683864398,-714.47,0.00016712,2]
[385202770,1757683864408,-732.03,0.00016712,2]
[385202771,1757683864419,-3733.72,0.00016712,2]
[385202772,1757683864429,-569.49,0.00016712,2]
[385202773,1757683864439,-580.0,0.00016712,2]
[385202774,1757683864450,-480.0,0.00016712,2]
[385202775,1757683864461,-480.0,0.00016712,2]
[385202776,1757683864471,-480.0,0.00016712,2]
[385202777,1757683864482,-560.73,0.00016712,2]
[385202778,1757683864492,-480.0,0.00016712,2]
[385202779,1757683864502,-480.0,0.00016712,2]
[385202780,1757683864512,-480.0,0.00016712,2]
[385202781,1757683864523,-649.79,0.00016712,2]
[385202782,1757683864533,-532.82,0.00016712,2]
[385202783,1757683864543,-202.77409693,0.00016712,2]
[385202784,1757683864552,-480.0,0.00016712,2]
[385202785,1757683864562,-480.0,0.00016712,2]
[385202786,1757683864572,-574.58,0.00016712,2]
[385202787,1757683864583,-480.0,0.00016712,2]
[385202788,1757683864593,-480.0,0.00016712,2]
[385202789,1757683864603,-480.0,0.00016712,2]
[385202790,1757683864613,-480.0,0.00016712,2]
[385202791,1757683864623,-480.0,0.00016712,2]
[385202792,1757683864633,-480.0,0.00016712,2]
[385202793,1757683864643,-2758.53,0.00016712,2]
[385202794,1757683864653,-480.0,0.00016712,2]
[385202795,1757683864663,-480.0,0.00016712,2]
[385202796,1757683864673,-480.0,0.00016712,2]
[385202797,1757683864683,-686.15,0.00016712,2]
[385202798,1757683864694,-978.27,0.00016712,2]
[385202799,1757683864704,-864.0,0.00016905,2]
[385202800,1757683864714,-480.0,0.00016986,2]
[385202801,1757683864725,-480.0,0.00016986,2]
[385202802,1757683864734,-480.0,0.00016986,2]
[385202803,1757683864744,-488.93,0.00016986,2]
[385202804,1757683864755,-480.0,0.00016986,2]
[385202805,1757683864764,-500.0,0.00016986,2]
[385202806,1757683864774,-480.0,0.00016986,2]
[385202807,1757683864784,-598.87,0.00016986,2]
[385202808,1757683864794,-1708.18,0.00016986,2]
[385202809,1757683864804,-2329.03,0.00016986,2]
[385202810,1757683864813,-559.79,0.00016986,2]
[385202811,1757683864823,-480.0,0.00016986,2]
[385202812,1757683864833,-480.0,0.00016986,2]
[385202813,1757683864843,-480.0,0.00016986,2]
[385202814,1757683864853,-518.78,0.00016986,2]
[385202815,1757683864863,-654.97,0.00016986,2]
[385202816,1757683864873,-1038.08,0.00016986,2]
[385202817,1757683864883,-480.0,0.00016986,2]
[385202818,1757683864893,-590.8,0.00016986,2]
[385202819,1757683864903,-714.47,0.00016986,2]
[385202820,1757683864914,-732.03,0.00016986,2]
[385202821,1757683864924,-3733.72,0.00016986,2]
[385202822,1757683864933,-569.49,0.00016986,2]
[385202823,1757683864944,-580.0,0.00016986,2]
[385202824,1757683864954,-480.0,0.00016986,2]
[385202825,1757683864963,-480.0,0.00016986,2]
[385202826,1757683864973,-480.0,0.00016986,2]
[385202827,1757683864983,-560.73,0.00016986,2]
[385202828,1757683864993,-480.0,0.00016986,2]
[385202829,1757683865003,-480.0,0.00016986,2]
[385202830,1757683865013,-480.0,0.00016986,2]
[385202831,1757683865023,-649.79,0.00016986,2]
[385202832,1757683865033,-532.82,0.00016986,2]
[385202833,1757683865044,-480.0,0.00016986,2]
[385202834,1757683865054,-574.58,0.00016986,2]
[385202835,1757683865064,-480.0,0.00016986,2]
[385202836,1757683865075,-576.88057355,0.00016986,2]
[385202837,1757683865084,-480.0,0.00016986,2]
[385202838,1757683865094,-480.0,0.00016986,2]
[385202839,1757683865104,-480.0,0.00016986,2]
[385202840,1757683865115,-480.0,0.00016986,2]
[385202841,1757683865124,-2758.53,0.00016986,2]
[385202842,1757683865134,-480.0,0.00016986,2]
[385202843,1757683865145,-480.0,0.00016986,2]
[385202844,1757683865160,-480.0,0.00016986,2]
[385202845,1757683865169,-686.15,0.00016986,2]
[385202846,1757683865179,-978.27,0.00016986,2]
[385202847,1757683865191,-35311.20081646,0.00017,2]
[385202848,1757683865374,-480.0,0.00013698,2]
[385202849,1757683865385,-480.0,0.00013698,2]
[385202850,1757683865399,-480.0,0.00013972,2]
[385202851,1757683865410,-424.50894598,0.00014246,2]
[385202855,1757683920942,1000.0,0.00018595,20]
[385202883,1757684435011,200.0,0.00027,120]
[385202884,1757684437566,1326.2418779,0.000135,2]
[385202886,1757684521648,1000.0,0.00012598,2]
[385202890,1757684536036,1556.26649276,0.000135,2]
[385202891,1757684620524,-3615843.01983291,0.00028526,20]
[385202892,1757684620554,-50227.5700608,0.00028526,30]
[385202893,1757684620585,-4333929.41010629,0.00028526,20]
[385202894,1757684624733,-8000000.0,0.00028526,20]
[385202895,1757684629872,-6225628.58529332,0.00028526,20]
[385202896,1757684629896,-303.0580444,0.00028526,30]
[385202897,1757684629919,-247.11302414,0.00028526,30]
[385202898,1757684629944,-677.2031917,0.00028526,30]
[385202899,1757684629967,-411.14698814,0.00028526,30]
[385202900,1757684629991,-179.38798284,0.00028526,30]
[385202901,1757684630014,-340.72796696,0.00028526,30]
[385202902,1757684630038,-875.60716924,0.00028526,30]
[385202903,1757684630063,-1037666.96540826,0.00028526,20]
[385202904,1757684630089,-733710.204931,0.00028526,20]
[385202905,1757684635567,-5983339.75878028,0.00028526,20]
[385202906,1757684635591,-4263.65681095,0.00028526,32]
[385202907,1757684635616,-916.44323,0.00028526,31]
[385202908,1757684635640,-2068.86967592,0.00028526,30]
[385202909,1757684635666,-1153313.16990717,0.00028526,20]
[385202910,1757684635692,-596225.18891565,0.00028526,20]
[385202911,1757684635717,-259922.91268003,0.00028526,20]
[385202913,1757684650373,10358.3516955,0.000135,2]
[385202914,1757684657335,-136131.18299311,0.00026,30]
[385202915,1757684657360,-10585.41552735,0.00026,30]
[385202916,1757684657385,-233.13074058,0.00026,30]
[385202917,1757684657409,-160.0,0.00026,30]
[385202918,1757684657434,-847.0429734,0.00026,30]
[385202919,1757684657458,-417.15472785,0.00026,30]
[385202920,1757684657481,-160.0,0.00026,30]
[385202921,1757684657505,-217.7145751,0.00026,30]
[385202922,1757684657535,-6579.77973379,0.00026875,30]
[385202923,1757684657559,-162.79830866,0.00026986,30]
[385202924,1757684657590,-162.79830867,0.00027342,30]
[385202925,1757684657616,-162.79830866,0.00027342,30]
[385202926,1757684657642,-1180.35972522,0.00027397,30]
[385202927,1757684657666,-1584.04255427,0.00027399,120]
[385202928,1757684657690,-1000.0,0.0002742,60]
[385202929,1757684657714,-500.0,0.00027437,120]
[385202930,1757684657739,-219.43,0.00027437,120]
[385202931,1757684657768,-17334.03659953,0.00028,60]
[385202932,1757684657791,-1000.0,0.00028,60]
[385202933,1757684657815,-200.0,0.00028,120]
[385202934,1757684657839,-37693.69585479,0.00028,120]
[385202935,1757684657863,-417.15472785,0.00028,120]
[385202936,1757684657890,-200.0,0.00028039,120]
[385202937,1757684657914,-200.0,0.00028087,120]
[385202938,1757684657938,-200.0,0.00028088,120]
[385202939,1757684657963,-200.0,0.00028259,120]
[385202940,1757684657987,-200.0,0.00028268,120]
[385202941,1757684658012,-200.0,0.00028368,120]
[385202942,1757684658035,-436.0,0.0002839,60]
[385202943,1757684658058,-1113.76481,0.000284,120]
[385202944,1757684658082,-155.0,0.000284,120]
[385202945,1757684658105,-204.18,0.000284,60]
[385202946,1757684658130,-156.59174,0.0002841,30]
[385202947,1757684658154,-200.0,0.00028415,120]
[385202948,1757684658177,-208.0,0.0002843,30]
[385202949,1757684658202,-208.0,0.0002843,30]
[385202950,1757684658234,-209.0,0.0002843,30]
[385202951,1757684658262,-208.0,0.0002843,30]
[385202952,1757684658287,-208.0,0.0002843,30]
[385202953,1757684658311,-183.3071459,0.00028432,60]
[385202954,1757684658336,-200.1,0.00028437,60]
[385202955,1757684658360,-188.4666082,0.00028438,30]
[385202956,1757684658384,-188.4666082,0.00028438,30]
[385202957,1757684658409,-188.4666082,0.00028438,30]
[385202958,1757684658435,-5000.0,0.0002844,60]
[385202959,1757684658460,-200.0,0.00028455,120]
[385202960,1757684658486,-4614.867,0.00028461,60]
[385202961,1757684658513,-304.82683,0.000285,120]
[385202962,1757684658538,-389.03802,0.000285,120]
[385202963,1757684658563,-200.0,0.000285,120]
[385202964,1757684658590,-1062.0,0.00028526,120]
[385202965,1757684658616,-200.0,0.00028539,120]
[385202966,1757684658642,-200.0,0.00028554,120]
[385202967,1757684658675,-200.0,0.00028574,120]
[385202968,1757684658700,-489.0,0.0002863,120]
[385202969,1757684658725,-518.25,0.00028648,30]
[385202970,1757684658752,-2000.0,0.00028715,60]
[385202971,1757684658778,-200.0,0.00028748,120]
[385202972,1757684658804,-200.0,0.00028756,120]
[385202973,1757684658830,-151.0,0.00028758,60]
[385202974,1757684658863,-335.794452,0.00028765,90]
[385202975,1757684658890,-16717.7396272,0.00028767,120]
[385202976,1757684658915,-1453.03465687,0.00028767,120]
[385202977,1757684658942,-231.782436,0.00028767,60]
[385202978,1757684658967,-10000.0,0.00028771,60]
[385202979,1757684658990,-10000.0,0.00028771,60]
[385202980,1757684659014,-260.26,0.00028776,60]
[385202981,1757684659038,-511.76,0.00028782,60]
[385202982,1757684659062,-200.0,0.00028789,120]
[385202983,1757684659088,-172.3,0.00028791,60]
[385202984,1757684659111,-5000.0,0.00028792,60]
[385202985,1757684659135,-310.8588,0.000288,120]
[385202986,1757684659159,-200.0,0.000288,120]
[385202987,1757684659182,-331.0156,0.000288,120]
[385202988,1757684659208,-315.27689,0.000288,120]
[385202989,1757684659231,-310.8588,0.000288,120]
[385202990,1757684659254,-593.96793,0.000288,120]
[385202991,1757684659277,-200.0,0.000288,120]
[385202992,1757684659301,-200.0,0.00028871,120]
[385202993,1757684659326,-200.0,0.00028873,120]
[385202994,1757684659349,-2519.0,0.00028906,60]
[385202995,1757684659373,-200.0,0.00028936,120]
[385202996,1757684659396,-1011.3,0.00028961,60]
[385202997,1757684659421,-150.0,0.00029,30]
[385202998,1757684659446,-3030.93292376,0.00029,60]
[385202999,1757684659468,-418.45,0.00029,30]
[385203000,1757684659492,-217.60587337,0.00029,30]
[385203001,1757684659651,-846.64878038,0.00029,30]
[385203002,1757684659675,-385.81271,0.00029,120]
[385203003,1757684659699,-160.0,0.00029,30]
[385203004,1757684659723,-200.0,0.00029,120]
[385203005,1757684659753,-1200.0,0.00029,120]
[385203006,1757684659777,-389.03802,0.00029,120]
[385203007,1757684659800,-1000.0,0.00029,60]
[385203008,1757684659824,-160.0,0.00029,30]
[385203009,1757684659847,-367.11406,0.00029,120]
[385203010,1757684659871,-417.15472785,0.00029,120]
[385203011,1757684659893,-653.0,0.0002901,120]
[385203012,1757684659916,-350.0,0.00029018,60]
[385203013,1757684659940,-200.0,0.00029023,120]
[385203014,1757684659963,-10000.0,0.00029029,60]
[385203015,1757684659987,-2399.999999,0.000291,120]
[385203016,1757684660012,-200.0,0.0002911,120]
[385203017,1757684660036,-200.0,0.00029148,120]
[385203018,1757684660060,-200.0,0.00029177,120]
[385203019,1757684660085,-200.0,0.00029257,120]
[385203020,1757684660109,-653.41054321,0.00029293,60]
[385203021,1757684660132,-3151.16389278,0.0002931,120]
[385203022,1757684660155,-310.8588,0.000294,120]
[385203023,1757684660178,-200.0,0.000294,120]
[385203024,1757684660201,-593.96793,0.000294,120]
[385203025,1757684660225,-200.0,0.000294,120]
[385203026,1757684660250,-603.77,0.00029402,60]
[385203027,1757684660274,-200.0,0.00029437,120]
[385203028,1757684660298,-1561.39433519,0.000295,120]
[385203029,1757684660323,-389.03802,0.000295,120]
[385203030,1757684660346,-200.0,0.0002953,120]
[385203031,1757684660370,-200.0,0.00029557,120]
[385203032,1757684660393,-200.0,0.00029597,120]
[385203033,1757684660416,-2000.0,0.00029729,60]
[385203034,1757684660441,-2000.0,0.00029729,60]
[385203035,1757684660463,-2000.0,0.00029729,60]
[385203036,1757684660487,-2000.0,0.00029729,60]
[385203037,1757684660510,-2000.0,0.00029729,60]
[385203038,1757684660533,-2000.0,0.00029729,60]
[385203039,1757684660556,-1099.12,0.00029729,60]
[385203040,1757684660580,-2552.0,0.00029744,60]
[385203041,1757684660606,-1538.1,0.00029765,60]
[385203042,1757684660630,-500.0,0.00029766,30]
[385203043,1757684660654,-500.0,0.00029766,30]
[385203044,1757684660678,-534.4,0.00029775,60]
[385203045,1757684660703,-200.0,0.00029795,120]
[385203046,1757684660725,-200.0,0.000298,120]
[385203047,1757684660747,-236.35,0.00029801,60]
[385203048,1757684660771,-200.0,0.00029801,120]
[385203049,1757684660795,-200.0,0.00029833,120]
[385203050,1757684660820,-155.0,0.000299,120]
[385203051,1757684660843,-777.57952091,0.00029998,120]
[385203052,1757684660866,-300.0,0.0003,30]
[385203053,1757684660889,-200.0,0.0003,60]
[385203054,1757684660912,-200.0,0.0003,120]
[385203055,1757684660936,-160.0,0.0003,30]
[385203056,1757684660960,-417.96783838,0.0003,30]
[385203057,1757684660983,-310.8588,0.0003,120]
[385203058,1757684661006,-250.13616659,0.0003,120]
[385203059,1757684661029,-299.10651633,0.0003,120]
[385203060,1757684661053,-200.0,0.0003,120]
[385203061,1757684661076,-936.03202445,0.0003,120]
[385203062,1757684661100,-200.0,0.0003,120]
[385203063,1757684661124,-593.96793,0.0003,120]
[385203064,1757684661148,-15305.73101942,0.0003,50]
[385203065,1757684661171,-202.10255,0.0003,120]
[385203066,1757684661194,-1246.08859386,0.0003,120]
[385203067,1757684661218,-5000.0,0.0003,30]
[385203068,1757684661242,-739.34,0.0003,120]
[385203069,1757684661265,-200.0,0.0003,120]
[385203070,1757684661288,-1594.45531379,0.0003,120]
[385203071,1757684661312,-10585.41552735,0.0003,120]
[385203072,1757684661335,-389.03802,0.0003,120]
[385203073,1757684661358,-10585.41552735,0.0003,120]
[385203074,1757684661381,-160.0,0.0003,120]
[385203075,1757684661403,-925.79996484,0.0003,120]
[385203076,1757684661426,-827.55115936,0.0003,60]
[385203077,1757684661454,-2048.47192963,0.0003,120]
[385203078,1757684661478,-160.0,0.0003,120]
[385203079,1757684661501,-417.15472785,0.0003,120]
[385203080,1757684661523,-489.0,0.00030061,120]
[385203081,1757684661548,-292.41446,0.000304,120]
[385203082,1757684661571,-815.09,0.000304,120]
[385203083,1757684661594,-500.9049657,0.0003046,30]
[385203084,1757684661617,-389.03802,0.000305,120]
[385203085,1757684661640,-499.999999,0.00030533,60]
[385203086,1757684661664,-310.8588,0.000306,120]
[385203087,1757684661686,-200.0,0.000306,120]
[385203088,1757684661710,-593.96793,0.000306,120]
[385203089,1757684661734,-931.0156,0.000307,120]
[385203090,1757684661757,-45249.7733598,0.0003079,30]
[385203091,1757684661780,-521.93498812,0.000308,120]
[385203092,1757684661803,-160.0,0.00031,120]
[385203093,1757684661828,-846.64878038,0.00031,120]
[385203094,1757684661852,-160.0,0.00031,120]
[385203095,1757684661875,-5792.20300981,0.00031,120]
[385203096,1757684661898,-389.03804,0.00031,120]
[385203097,1757684661922,-217.7145751,0.00031,120]
[385203098,1757684661946,-160.0,0.00031,120]
[385203099,1757684661969,-233.13074058,0.00031,120]
[385203100,1757684661992,-847.0429734,0.00031,120]
[385203101,1757684662016,-160.0,0.00031,120]
[385203102,1757684662155,-217.7145751,0.00031,120]
[385203103,1757684662180,-344.06326,0.000312,120]
[385203104,1757684662203,-310.8588,0.000312,120]
[385203105,1757684662228,-247.72183,0.000312,120]
[385203106,1757684662251,-593.96793,0.000312,120]
[385203107,1757684662275,-400.0,0.000314,120]
[385203108,1757684662299,-155.0,0.000314,120]
[385203109,1757684662322,-331.01568,0.000315,120]
[385203110,1757684662346,-489.0,0.00031564,120]
[385203111,1757684662369,-188.4666082,0.00031731,30]
[385203112,1757684662393,-188.4666082,0.00031731,30]
[385203113,1757684662415,-188.4666082,0.00031731,30]
[385203114,1757684662439,-188.4666082,0.00031731,30]
[385203115,1757684662461,-376.9332164,0.00031731,30]
[385203116,1757684662484,-463.7919202,0.00031731,30]
[385203117,1757684662508,-200.0,0.00032,120]
[385203118,1757684662532,-106300.25920413,0.00032,60]
[385203119,1757684662555,-302667.285,0.00032,60]
[385203120,1757684662579,-203253.42664392,0.00032,60]
[385203121,1757684662604,-200.0,0.0003251,32]
[385203122,1757684662628,-155.0,0.000328,120]
[385203123,1757684662652,-208.41384974,0.0003288,30]
[385203124,1757684662676,-208.41,0.0003288,30]
[385203125,1757684662700,-154.2,0.0003288,30]
[385203126,1757684662723,-179.90459394,0.0003288,30]
[385203127,1757684662746,-179.9,0.0003288,30]
[385203128,1757684662770,-1311.25,0.00032914,60]
[385203129,1757684662794,-1311.25,0.00033014,60]
[385203130,1757684662818,-1311.25,0.00033114,60]
[385203131,1757684662842,-489.0,0.00033142,120]
[385203132,1757684662865,-300.0,0.000332,120]
[385203133,1757684662889,-18303.26338288,0.000332,117]
[385203134,1757684662912,-18303.26338288,0.000332,117]
[385203135,1757684662935,-18303.26338288,0.000332,117]
[385203136,1757684662958,-18303.26338288,0.000332,117]
[385203137,1757684662983,-18303.26338288,0.000332,117]
[385203138,1757684663007,-1311.25,0.00033214,60]
[385203139,1757684663030,-1311.25,0.00033314,60]
[385203140,1757684663054,-1311.25,0.00033414,60]
[385203141,1757684663079,-1311.25,0.00033514,60]
[385203142,1757684663103,-1311.25,0.00033614,60]
[385203143,1757684663126,-1311.25,0.00033714,60]
[385203144,1757684663151,-1311.25,0.00033814,60]
[385203145,1757684663174,-1311.25,0.00033914,60]
[385203146,1757684663198,-250.0,0.00034,120]
[385203147,1757684663225,-1311.25,0.00034014,60]
[385203148,1757684663249,-1311.25,0.00034114,60]
[385203149,1757684663273,-190.6276095,0.00034163,30]
[385203150,1757684663296,-153.0,0.00034163,30]
[385203151,1757684663329,-153.0,0.00034163,30]
[385203152,1757684663361,-153.0,0.00034163,30]
[385203153,1757684663388,-153.0,0.00034163,30]
[385203154,1757684663422,-456.1260357,0.00034163,30]
[385203155,1757684663456,-1311.25,0.00034214,60]
[385203156,1757684663488,-1112.61,0.00034246,120]
[385203157,1757684663521,-155.0,0.000343,120]
[385203158,1757684663551,-1311.25,0.00034314,60]
[385203159,1757684663584,-1311.25,0.00034414,60]
[385203160,1757684663616,-200.0,0.0003445,38]
[385203161,1757684663647,-1311.25,0.00034514,60]
[385203162,1757684663676,-1311.25,0.00034614,60]
[385203163,1757684663705,-5000.0,0.00034664,45]
[385203164,1757684663734,-5000.0,0.00034664,46]
[385203165,1757684663766,-5000.0,0.00034664,48]
[385203166,1757684663797,-5000.0,0.00034664,45]
[385203167,1757684663830,-5000.0,0.00034664,46]
[385203168,1757684663856,-3296.85616355,0.000347,30]
[385203169,1757684663883,-1311.25,0.00034714,60]
[385203170,1757684663915,-489.0,0.00034799,120]
[385203171,1757684663943,-1311.25,0.00034814,60]
[385203172,1757684663971,-1311.25,0.00034914,60]
[385203173,1757684664000,-212.95332174,0.00035,30]
[385203174,1757684664027,-200.0,0.00035,120]
[385203175,1757684664053,-1069.12128045,0.00035,120]
[385203176,1757684664081,-717.74133788,0.00035,30]
[385203177,1757684664109,-236.55,0.00035,69]
[385203178,1757684664136,-1989.15996228,0.00035,120]
[385203179,1757684664163,-3230.82775061,0.00035,120]
[385203180,1757684664190,-39316.66408835,0.00035,120]
[385203181,1757684664216,-238.18697286,0.00035,120]
[385203182,1757684664242,-155.29409652,0.00035,120]
[385203183,1757684664270,-1311.25,0.00035014,60]
[385203184,1757684664296,-815.09,0.000351,120]
[385203185,1757684664324,-1311.25,0.00035114,60]
[385203186,1757684664353,-1311.25,0.00035214,60]
[385203187,1757684664380,-1311.25,0.00035314,60]
[385203188,1757684664409,-1311.25,0.00035414,60]
[385203189,1757684664436,-1311.75751582,0.00035514,60]
[385203190,1757684664462,-558.0,0.00035616,120]
[385203191,1757684664489,-155.0,0.000358,120]
[385203192,1757684664516,-300.0,0.00036,120]
[385203193,1757684664544,-200.0,0.000364,43]
[385203194,1757684664571,-192.83737955,0.000365,120]
[385203195,1757684664598,-489.0,0.00036539,120]
[385203196,1757684664625,-12543.28383467,0.00036896,60]
[385203197,1757684664652,-10024.96994193,0.000369,30]
[385203198,1757684664681,-1112.61,0.00036986,120]
[385203199,1757684664708,-300.0,0.00037,120]
[385203200,1757684664736,-155.0,0.000373,120]
[385203201,1757684664916,-1011.0,0.000375,120]
[385203202,1757684664939,-157.7,0.000375,112]
[385203203,1757684664963,-1362.0,0.00038,120]
[385203204,1757684664987,-300.0,0.00038,120]
[385203205,1757684665011,-2024.42135875,0.000382,120]
[385203206,1757684665036,-1000.0,0.000385,120]
[385203207,1757684665061,-37039.50854205,0.000385,120]
[385203208,1757684665087,-283.90529701,0.000387,120]
[385203209,1757684665112,-155.0,0.000387,120]
[385203210,1757684665135,-150.43051309,0.0003888,30]
[385203211,1757684665160,-1648117.08693812,0.000389,120]
[385203212,1757684689711,329.36531348,0.00015036,7]
[385203213,1757684707191,180.96235253,0.0002739,120]
[385203214,1757684778050,1060.99350232,0.000135,2]
[385203215,1757684785874,-373.28,0.00028555,30]
[385203216,1757684785912,-160.0,0.00029,30]
[385203217,1757684785936,-233.13074058,0.00029,30]
[385203218,1757684785970,-1019.89,0.00034246,120]
[385203219,1757684785997,-1019.89,0.00036986,120]
[385203220,1757684786021,-157.7,0.000375,112]